Cogmind - Beta 13 @@@ ROGUE MODE // 2024.04.11 @ 13:27:06 // Winter2019/RPGLIKE Player: H3-RMN Result: Destroyed by G-47 Trooper with Particle Gun Performance ------------- Evolutions (0) 0 Regions Visited (1) 200 Robots Destroyed (14) 70 Value Destroyed (363) 363 Prototype IDs (2) 40 Alien Tech Used (0) 0 Bonus (0) 0 TOTAL SCORE: 673 Bonus ------- None Cogmind --------- Core Integrity 0/600 Matter 275/300 Energy 100/100 System Corruption 0% Temperature Cool (9) Movement Treading (160) Location -10/Materials Parts ------- > --- POWER (1) -------- (None) > --- PROPULSION (2) --- Light Treads Wheel > --- UTILITY (2) ------ Improved Terrain Scanner Seismic Detector > --- WEAPON (1) ------- Light Assault Rifle > --- INVENTORY (2) ---- Mining Laser Peak State ------------ > --- POWER ------------ Light Ion Engine > --- PROPULSION ------- Light Treads Wheel > --- UTILITY ---------- Improved Terrain Scanner Seismic Detector > --- WEAPON ----------- Light Assault Rifle > --- INVENTORY -------- Mining Laser [Rating: 8] Favorites ----------- Power Light Ion Engine Engine Light Ion Engine Propulsion Wheel Treads Light Treads Wheel Wheel Utility Improved Terrain Scanner Device Improved Terrain Scanner Weapon Light Assault Rifle Ballistic Gun Light Assault Rifle Build | -11 -10 ------- Run | Yrd Mat Slots Evolved 2 | 2 . Power . | . . Propulsion 1 | 1 . Utility 1 | 1 . Weapon . | . . Parts Attached 6 | 5 1 Power 1 | 1 . Engine 1 | 1 . Core . | . . Reactor . | . . Propulsion 2 | 2 . Treads 1 | 1 . Leg . | . . Wheel 1 | 1 . Hover . | . . Flight . | . . Utility 2 | 1 1 Device 2 | 1 1 Storage . | . . Processor . | . . Hackware . | . . Protection . | . . Artifact . | . . Weapon 1 | 1 . Energy Gun . | . . Energy Cannon . | . . Ballistic Gun 1 | 1 . Ballistic Cannon . | . . Launcher . | . . Special Weapon . | . . Impact Weapon . | . . Slashing Weapon . | . . Piercing Weapon . | . . Special Melee Weapon . | . . Unidentified Prototypes . | . . Parts Lost 1 | . 1 Power 1 | . 1 Propulsion . | . . Utility . | . . Weapon . | . . Highest Loss Streak 1 | . 1 To Critical Strikes . | . . Average Slot Usage (%) 96 | . 96 Engine 15 | . 15 Treads 16 | . 16 Wheel 16 | . 16 Device 30 | . 30 Ballistic Gun 16 | . 16 Naked Turns . | . . Heaviest Build 6 | 5 6 Greatest Support 25 | 25 15 Greatest Overweight (x) . | . . Average Overweight (x) . | . . Largest Inventory Capacity 2 | 2 2 Average Capacity 2 | 2 2 Most Carried 1 | 1 1 Average Carried . | . 1 Final Capacity 2 | 2 2 Final Carried 1 | 1 1 Class Distribution -------------------- 100% | Mutant Dominant Class ---------------- Mutant | -10/Materials Resources | -11 -10 ----------- Run | Yrd Mat Matter Collected 348 | 267 81 Remotely . | . . Salvage Created 464 | 49 415 Parts 30 | 6 24 Haulers Intercepted . | . . Recyclers Shooed . | . . Parts Field Recycled . | . . Retrieved Matter . | . . Parts Self-Destructed . | . . Prevented . | . . Kills | -11 -10 ------- Run | Yrd Mat Combat Hostiles Destroyed 12 | . 12 Guns 12 | . 12 Classes Destroyed 3 | 1 2 Tunneler 2 | 2 . Swarmer 3 | . 3 Grunt 9 | . 9 Best Kill Streak 3 | 1 3 Combat Bots Only 3 | . 3 Max Kills in Single Turn 1 | 1 1 Gunslinging . | . . Exploded . | . . Melee . | . . Uniques/NPCs Destroyed . | . . Combat | -11 -10 -------- Run | Yrd Mat Hostile Shots Fired 109 | . 109 Missed 22 | . 22 Damage Taken 1038 | . 1038 Core 860 | . 860 Absorbed by Shields . | . . Redirected to Core 580 | . 580 Core Remaining (%) 100 | 100 . Volleys Fired 118 | 17 101 Largest 1 | 1 1 Hottest 20 | 20 20 Shots Fired 118 | 17 101 Gun 118 | 17 101 Cannon . | . . Launcher . | . . Special . | . . Kinetic 118 | 17 101 Thermal . | . . Explosive . | . . Electromagnetic . | . . Robot Hit Streak 20 | 5 20 Robot Miss Streak 3 | 2 3 Penetration Max . | . . Secondary Targets . | . . Shots Hit Robots 90 | 13 77 Core Hits 36 | 5 31 Critical Kills . | . . Critical Parts Destroyed . | . . Critical Strikes . | . . Melee Attacks . | . . Impact . | . . Slashing . | . . Piercing . | . . Sneak Attacks . | . . Combat Hostiles . | . . Follow-up Attacks . | . . Damage Inflicted 724 | 114 610 Guns 724 | 114 610 Cannons . | . . Explosions . | . . Melee . | . . Ramming . | . . Kinetic 724 | 114 610 Thermal . | . . Explosive . | . . Electromagnetic . | . . Impact . | . . Slashing . | . . Piercing . | . . Highest Corruption . | . . Average Corruption . | . . Corruption Purged . | . . Corruption Blocked . | . . Overload Shots . | . . Overflow Damage . | . . Projectiles . | . . Explosions . | . . Melee . | . . Knockbacks . | . . Impact . | . . Kinetic . | . . Secondary . | . . Self-Inflicted Damage . | . . Shots . | . . Rammed . | . . Targets Rammed . | . . Kicked . | . . Crushed . | . . Highest Temperature . | . . Average Temperature . | . . Received Heat Transfer 486 | . 486 Siege Activations . | . . Robots Corrupted . | . . Combat Hostiles . | . . Parts Fried . | . . Impact Corruptions . | . . Robots Melted . | . . Combat Hostiles . | . . Parts Melted . | . . Heat Transferred . | . . Parts Sabotaged . | . . Parts Stolen . | . . Parts Stripped . | . . Power Chain Reactions . | . . Alert | -11 -10 ------- Run | Yrd Mat Peak Influence 350 | 10 350 Initial 6 | . 6 Average 129 | 3 152 Maximum Alert Level 1 | . 1 Low Security (%) 73 | 100 68 Level 1 26 | . 31 Level 2 . | . . Level 3 . | . . Level 4 . | . . Level 5 . | . . High Security . | . . Max Security . | . . Squads Dispatched 3 | . 3 Investigation 3 | . 3 Extermination . | . . Reinforcement . | . . Assault . | . . Garrison . | . . Intercept . | . . Searches Triggered . | . . Construction Impeded . | . . Haulers Reinforced . | . . Active Scanning Responses . | . . Cargo Convoy Interrupts . | . . Stealth | -11 -10 --------- Run | Yrd Mat Distress Signals 2 | . 2 Communications Jammed . | . . Distress Signals . | . . Times Spotted 19 | . 19 Peak Tracking Total 4 | . 4 Tactical Retreats 2 | . 2 Traps | -11 -10 ------- Run | Yrd Mat Traps Triggered 2 | . 2 Indirectly . | . . Trap Hack Attempts . | . . Triggered . | . . Disarmed . | . . Reprogrammed . | . . Reused . | . . Traps Extracted . | . . Installed . | . . Triggered . | . . Machines | -11 -10 ---------- Run | Yrd Mat Machines Disabled . | . . Max in Single Turn . | . . Machines Repaired . | . . Machines Dismantled . | . . Machines Sabotaged . | . . Overloaded Fab Kills . | . . Hacking | -11 -10 --------- Run | Yrd Mat Machines Accessed 4 | . 4 Terminals 4 | . 4 Fabricators . | . . Repair Stations . | . . Recycling Units . | . . Scanalyzers . | . . Garrison Access . | . . Total Hacks 16 | . 16 Successful 7 | . 7 Failed 9 | . 9 Catastrophic . | . . Database Lockouts . | . . Manual 12 | . 12 Terminals 16 | . 16 Fabricators . | . . Repair Stations . | . . Recycling Units . | . . Scanalyzers . | . . Garrison Access . | . . Terminal Hacks 3 | . 3 Robot Schematic 1 | . 1 Robot Analysis 1 | . 1 Prototype ID Bank 1 | . 1 Fabricator Hacks . | . . Repair Station Hacks . | . . Recycling Unit Hacks . | . . Scanalyzer . | . . Garrison Access Hacks . | . . Unauthorized Hacks 4 | . 4 Terminals 4 | . 4 Track 1 | . 1 Assimilate 2 | . 2 Botnet 1 | . 1 Fabricators . | . . Repair Stations . | . . Recycling Units . | . . Scanalyzers . | . . Garrison Access . | . . Data Cores Recovered . | . . Used . | . . Hacking Detections 4 | . 4 Full Trace Events 3 | . 3 Feedback Events . | . . Feedback Blocked . | . . Robot Schematics Acquired 1 | . 1 Robots Built . | . . Authchips . | . . Time . | . . Total Robot Build Rating . | . . Part Schematics Acquired . | . . Parts Built . | . . Authchips . | . . Time . | . . Total Part Build Rating . | . . Parts Repaired . | . . Time . | . . Parts Recycled . | . . Recycled Matter . | . . Retrieved Matter . | . . Retrieved Components . | . . Parts Scanalyzed . | . . Part Schematics Acquired . | . . Parts Damaged . | . . Bothacking | -11 -10 ------------ Run | Yrd Mat Used RIF Installer . | . . Robots Hacked . | . . Non-combat . | . . Combat . | . . Robot Hacks Applied . | . . Relay Couplers Released . | . . Fabnet Peak Effective % . | . . Robots Rewired . | . . Allies Hacked . | . . Hacks Repelled . | . . Allies | -11 -10 -------- Run | Yrd Mat Total Allies . | . . Largest Group . | . . Highest-Rated Group . | . . Highest-Rated Ally . | . . Total Orders . | . . Ally Attacks . | . . Total Damage . | . . Kills . | . . Allies Corrupted . | . . Allies Melted . | . . Intel | -11 -10 ------- Run | Yrd Mat Robot Analysis Total 1 | . 1 Derelict Logs Recovered . | . . Drone Launches . | . . Drone Recoveries . | . . Exploration | -11 -10 ------------- Run | Yrd Mat Turns Passed 600 | 92 508 Spaces Moved 272 | 66 206 Core 7 | 7 . Treads 2 | 2 . Legs . | . . Wheels 263 | 57 206 Hover . | . . Flight . | . . Fastest Speed 50 | 50 80 Average Speed 79 | 79 80 Slowest Speed 160 | 160 80 Overloaded Moves . | . . Propulsion Burnouts . | . . Robots Hopped . | . . Cave-ins Triggered . | . . Exploration Rate (%) 26 | 5 48 Regions Visited 1 Branch Regions . Pre-discovered Areas . | . . Known Exits Taken . | . . Unknown Exits Taken 1 | 1 . Scrap Searched . | . . Spaces Dug . | . . Terrain Destroyed . | . . Melee . | . . Projectile . | . . AOE . | . . Terrain Rammed . | . . Walls Destroyed . | . . Machines Disabled . | . . Actions | -11 -10 --------- Run | Yrd Mat Total 557 | 89 468 Wait 149 | 1 148 Move 271 | 65 206 Hop . | . . Pick Up 1 | 1 . Fast Attach 6 | 5 1 Attach . | . . Detach . | . . Swap . | . . Drop . | . . Fire 118 | 17 101 Melee . | . . Ram . | . . Kick . | . . Crush . | . . Escape Stasis . | . . Rewire . | . . Trap . | . . Miscellaneous 12 | . 12 Route ------- -11/Scrapyard -10/Materials (discovered 2 exits: [*Mat] / [*Min]) History --------- Turn | Location | Event 1 | -11/Scrapyard | Upgraded with Propulsion slot (x1) 1 | -11/Scrapyard | Upgraded with Utility slot (x1) 9 | -11/Scrapyard | Discovered new exit (range 17) 93 | -11/Scrapyard | Entered Materials 318 | -10/Materials | Build established: Mutant 423 | -10/Materials | Core integrity fell below 50% 469 | -10/Materials | Discovered new exit (range 17) 520 | -10/Materials | Discovered new exit (range 16) 582 | -10/Materials | Core integrity fell below 20% 601 | -10/Materials | Destroyed by G-47 Trooper with Particle Gun Last Messages --------------- 00443_ K-01 Serf collects debris. 00450_ G-34 Mercenary destroyed. 00456_ Acquired 45 matter. 00457_ K-01 Serf collects debris. 00469_ EXIT=FOUND 00472_ R-06 Scavenger collects Lgt. Ion Engine. 00472_ K-01 Serf collects debris. 00474_ A-02 Transporter sends out distress signal. 00479_ G-34 Mercenary destroyed. 00486_ Used Protomatter to restore core integrity (+96, depleted) 00520_ EXIT=FOUND 00527_ Connecting with Terminal... 00539_ Triggered Alarm Trap. 00539_ An alarm sounds. 00539_ ALERT: Alarm triggered, dispatching investigation squad. 00553_ U-05 Engineer lays Concrete. 00581_ Lgt. Ion Engine destroyed. Map ----- +----------------------------------------------------+ | ??????????????????????????????????? | | ??????????????????????????????????? | | ??????????????????????????????????? | | ????????????????????? ?????????? ?? | | ???????????#"""#???????#????????? ? | | ????????#?#"!!!"#?#?#??#????#?????? | | ?????????#"" ""#??? #??????????## | | ?????????? ???? #??????????## | | ?????????? < ?? #?????####?# | | ????#???#? ?? #??? ??????# | | ??#???###?? # ####?""???## | | #??#?##???# ## ????"???# | | ???####???## ### ? ?"? ## | | #??####?#??# #????? ## | | ?##?#????#?# ? # "?" ?## | | ##?##??##### ?? ????"? # | | #?########## ?? ???""?? # | | ?#### # #########?#? ? # | | ??### # # ### ? ??# | | ?#??# + + "T" ###?? ?T"# | | #?#?# # t# ### ?"## | | ##?## !! # ##########? ?? ?## | | ###?# !! # ##?#########?####?# | | ############ ##### ######### | | # gg | | # """ """ @# | | ??""" """ # | | #??"" """ ######### ######### | | #?? #######?## #####?###### | | ? ####?##### ######?##### | | # #######?## ##########?# | | ?###############?#### #?#####?#### | | ##?##???###???#?#? ########??# | | ?#??#?#??# ?? ####?##?### | | ###??##??# ?? ? T #?#####?## | | ##???##??# # ? ### | | # ? ?? ? ##### # ? ### | | # ?????? # ?#?#### ## ### | | ?? ?? ? # ##?### ## ?#?### | | ??? ? ? ?#? ###?## ######## | | ????? ?+ ?##??# = /! | | ?????????? ???????# ####= | | ??????????????????#######+###+#### | | ???????????????????# ? ? ? ?# | | ????????????????????? """ """ ## | | ???????????????????# ?""?"""""?## | | ????????????????????? ?""""? ?# | | ?????????????????? ??? ? ?### | | ?????????????????????#??####?###?## | | ?????????????????????#?##?#?#####? | +----------------------------------------------------+ Best States ------------- Heat Dissipation 37 Energy Generation 10 Energy Capacity 125 Matter Stores 300 Matter Capacity 300 Sight Range 17 Terrain Scan Range 16 Terrain Scan Density 110 Evasion (%) 44 Recoil Reduction 1 Offensive Hacking 10 Defensive Hacking 5 Item Schematics ----------------- None Robot Schematics ------------------ M-13 Machinist | -10/Materials | Hacked Fabricated ------------ Nothing Alien Tech Used ----------------- None Achievements -------------- None Challenges ------------ None RPGLIKE | -11 -10 --------- Run | Yrd Mat Levels Raised . | . . XP Earned 4400 | 3000 1400 XP Spent 2920 | 2920 . Upgrades 12 | 12 . Propulsion Slot 1 | 1 . Utility Slot 1 | 1 . Heat Dissipation 2 | 2 . Mass Support 1 | 1 . Inventory Capacity 2 | 2 . Sight Range 1 | 1 . Terrain Scan Density 1 | 1 . Hack Attack % 2 | 2 . Hack Defense % 1 | 1 . Protomatter Created 128 | . 128 Integrity Restored 258 | . 258 Core 258 | . 258 Protomatter Decayed 42 | . 42 Game ------ Seed AutogunCoolingPurifier Manual? 0 Play Time 00:06:03 Cumulative 696.2 hours Start 2024.04.11 @ 13:20:21 End 2024.04.11 @ 13:27:06 Sessions 1 Manual Loads 0 Difficulty Rogue Special Mode Winter2019/RPGLIKE Game No. 285 Rogue 257 Adventurer 3 Explorer 25 Win Type - Total 16 Types 10/3/1/1/0/1/0/0/0 Lore% 91 Gallery% 96 Achievement% 85 Wizard Run 0 Options --------- Layout 2 ASCII 0 Keyboard 0 Movement Numpad Keybinds 0 Fullscreen 2 Font 24/Smallcaps Map View 50x44 Zoom Use 0% Tactical HUD 1 Map Filters NONE Filters NONE Steam X RUN: eaec5f34-c4da-4262-bc18-8cf1fc9e2936